bitfinex/quotes_ETHUSD_20251212
["timestamp","ask_amount","ask_price","bid_price","bid_amount"]
[1765567267889,1.1454,3076.8,3076.7,0.09444716]
[1765567268480,0.6679,3076.8,3076.7,0.09444716]
[1765567268921,1.1454,3076.8,3076.7,0.09444716]
[1765567269097,0.4775,3077.2,3076.7,3.3446828]
[1765567269398,0.4775,3077.2,3077.1,0.09444716]
[1765567269726,0.4775,3077.2,3077.1,0.12694529]
[1765567270021,0.4699,3077.2,3077.1,0.09444716]
[1765567270602,0.001,3077.3,3077.1,0.09444716]
[1765567271223,0.001,3077.3,3077.2,3.24970752]
[1765567271636,0.4709,3077.3,3077.1,0.09444716]
[1765567271934,0.4699,3077.2,3077.1,0.09444716]
[1765567272429,0.9474,3077.2,3077.1,0.09444716]
[1765567272940,0.9474,3077.2,3076.8,0.09444716]
[1765567273227,0.9474,3077.2,3076.4,0.09444716]
[1765567273228,0.198,3076.5,3076.4,0.09444716]
[1765567273431,0.6679,3076.5,3076.4,0.09444716]
[1765567273594,4.39584693,3076.5,3076.0,0.09444716]
[1765567273793,0.4699,3076.3,3076.0,3.34542139]
[1765567274208,0.9474,3076.3,3076.0,0.09444716]
[1765567274389,0.6755,3076.9,3076.2,3.34521108]
[1765567274591,0.6755,3076.9,3076.8,0.09444716]
[1765567274795,0.198,3076.9,3076.8,0.09444716]
[1765567274991,0.001,3077.3,3076.8,0.12694846]
[1765567275319,0.4785,3077.3,3076.9,3.25002437]
[1765567276693,0.4785,3077.3,3076.8,0.09444716]
[1765567276694,0.4699,3077.0,3076.8,3.34456712]
[1765567276893,0.4785,3077.3,3076.8,3.34456712]
[1765567277502,0.6679,3076.9,3076.8,0.09444716]
[1765567277926,1.1454,3076.9,3076.6,0.09444716]
[1765567278118,0.4699,3076.7,3076.6,0.09444716]
[1765567278519,0.9481,3076.7,3076.6,0.09444716]
[1765567279426,4.19839832,3076.7,3076.4,0.09444716]
[1765567279627,0.4593,3076.5,3076.4,0.09444716]
[1765567280002,0.9375,3076.5,3076.4,0.09444716]
[1765567280637,0.9375,3076.5,3076.2,0.09444716]
[1765567280800,0.4529,3076.3,3076.2,0.09444716]
[1765567281228,0.929,3076.3,3076.2,0.09444716]
[1765567281429,4.17965825,3076.3,3076.2,0.09444716]
[1765567282019,0.929,3076.3,3076.2,0.09444716]
[1765567282896,4.17965825,3076.3,3076.2,0.09444716]
[1765567283130,7.4303165,3076.3,3076.0,0.09444716]
[1765567283428,0.4529,3076.1,3075.6,0.09444716]
[1765567283605,0.6511,3075.7,3075.6,0.09444716]
[1765567284035,1.1272,3075.7,3075.6,0.09444716]
[1765567284397,0.6511,3075.7,3075.6,0.09444716]
[1765567284599,0.4761,3076.3,3075.6,3.34584526]
[1765567284897,6.97743598,3076.3,3075.9,0.09444716]
[1765567285319,0.4529,3076.0,3075.9,0.09444716]
[1765567285817,0.929,3076.0,3075.9,0.09444716]
[1765567286734,0.4761,3076.6,3075.9,3.34552814]
[1765567286932,0.4761,3076.6,3076.4,0.09444716]
[1765567287110,0.4761,3076.6,3075.6,0.97613512]
[1765567287111,0.4529,3076.0,3075.6,0.97613512]
[1765567287432,1.225436,3076.6,3075.7,0.03251292]
[1765567287677,0.517,3076.4,3075.6,0.405504]
[1765567288433,0.6511,3075.7,3074.7,9.06163004]
[1765567288619,0.6511,3075.7,3075.3,0.58047529]
[1765567288620,0.4529,3075.6,3075.3,0.58047529]
[1765567288825,0.4529,3075.6,3075.3,3.83210625]
[1765567289213,0.4529,3075.4,3074.8,0.6511]
[1765567289520,0.1982,3075.7,3075.3,3.92663772]
[1765567289725,0.1982,3075.7,3075.5,0.09444716]
[1765567289935,0.6743,3075.7,3075.5,0.09444716]
[1765567290231,0.4529,3075.6,3075.5,0.09444716]
[1765567290436,0.929,3075.6,3075.5,0.09444716]
[1765567291111,0.517,3075.9,3075.5,0.09444716]
[1765567291304,0.517,3075.9,3075.7,0.09444716]
[1765567291712,1.1913,3075.9,3075.7,0.09444716]
[1765567291912,0.4529,3075.8,3075.4,0.09444716]
[1765567292122,0.4761,3075.8,3075.4,0.09444716]
[1765567292323,0.4529,3075.5,3075.3,0.58047529]
[1765567292522,0.4529,3075.4,3075.3,0.58047529]
[1765567293224,0.4529,3075.4,3075.3,0.67492245]
[1765567293709,0.4529,3075.4,3075.3,3.92663772]
[1765567293908,0.4761,3075.6,3075.3,3.92663772]
[1765567294142,0.4761,3075.6,3075.5,0.09444716]
[1765567294645,0.929,3075.6,3075.5,0.09444716]
[1765567295044,0.4529,3075.6,3075.5,0.09444716]
[1765567295244,0.7152,3075.9,3075.5,0.09444716]
[1765567295414,1.1913,3075.9,3075.5,0.09444716]
[1765567296108,0.7152,3075.9,3075.5,0.09444716]
[1765567296312,0.4761,3075.8,3075.5,0.09444716]
[1765567297422,0.4529,3075.6,3075.5,0.09444716]
[1765567297656,0.4761,3075.8,3075.5,3.34595098]
[1765567298127,0.4761,3075.8,3075.5,0.09444716]
[1765567298661,0.4761,3075.8,3074.3,0.002]
[1765567298662,0.4529,3075.6,3074.3,0.002]
[1765567298960,0.4529,3074.4,3074.3,0.002]
[1765567299370,0.929,3074.4,3074.3,0.002]
[1765567300026,4.18166718,3074.4,3074.3,0.002]
[1765567300227,4.97678936,3074.4,3074.3,0.002]
[1765567303845,4.69866718,3074.4,3074.3,0.002]
[1765567307044,5.68464647,3074.4,3074.3,0.002]
[1765567315498,9.29048847,3074.4,3074.3,0.002]
[1765567315656,13.01363176,3073.7,3073.0,0.002]
[1765567315855,0.4581,3073.1,3073.0,0.002]
[1765567316080,0.9751,3073.1,3073.0,0.002]
[1765567316269,1.4499,3073.1,3073.0,0.002]
[1765567317778,4.70394314,3073.1,3073.0,0.002]
[1765567318166,3.25398265,3073.2,3073.0,0.002]
[1765567318361,3.25368823,3073.5,3072.6,0.09444716]
[1765567318581,0.517,3073.4,3072.9,0.09444716]
[1765567318781,0.517,3073.4,3073.1,0.09444716]
[1765567319190,0.517,3073.4,3073.3,0.09444716]
[1765567319379,0.517,3073.7,3073.3,0.09444716]
[1765567319987,3.77042118,3073.7,3073.3,0.09444716]
[1765567320394,7.02384236,3073.7,3072.9,0.09444716]
[1765567320581,0.4581,3073.4,3072.6,0.09444716]
[1765567320895,3.25342118,3073.7,3072.8,3.34872464]
[1765567321104,0.517,3073.6,3073.0,0.09444716]
[1765567321400,0.517,3073.6,3073.2,0.09444716]
[1765567321601,0.517,3073.6,3073.0,3.34855118]
[1765567321602,0.517,3073.6,3073.0,0.09444716]
[1765567321793,0.517,3073.6,3073.0,3.34853093]
[1765567322109,3.77054997,3073.6,3073.0,3.34853093]
[1765567322313,0.517,3073.6,3073.0,3.34853093]
[1765567323502,3.7705191,3073.6,3073.0,3.34853093]
[1765567323711,3.7705191,3073.6,3073.0,0.09444716]
[1765567323870,3.7705191,3073.6,3073.0,3.34857593]
[1765567324282,0.517,3073.6,3073.0,3.34857593]
[1765567324701,3.77051471,3073.6,3073.0,3.34857593]
[1765567324904,0.517,3073.6,3073.0,3.34857593]
[1765567325090,3.25294915,3074.2,3073.3,0.09444716]
[1765567325266,0.517,3074.1,3073.5,0.09444716]
[1765567326312,3.77005972,3074.1,3073.7,0.09444716]
[1765567327573,3.77005972,3074.1,3073.5,0.09444716]
[1765567327774,10.27617916,3074.1,3072.8,1.65193497]
[1765567328005,10.27617916,3074.1,3073.3,0.09444716]
[1765567328006,0.4748,3074.0,3073.3,0.09444716]
[1765567328275,3.25319626,3073.9,3073.3,0.09444716]
[1765567328586,3.25319626,3073.9,3073.3,3.34826404]
[1765567328788,3.25319626,3073.9,3073.3,0.09444716]
[1765567329002,3.72789593,3074.0,3073.3,3.34827008]
[1765567329209,3.77003846,3074.1,3073.5,0.09444716]
[1765567329439,3.77003846,3074.1,3073.7,0.09444716]
[1765567329440,0.517,3074.1,3073.7,0.09444716]
[1765567329893,3.25234982,3074.7,3073.9,0.09444716]
[1765567330098,0.517,3074.6,3074.1,0.09444716]
[1765567330434,0.517,3074.6,3074.3,0.09444716]
[1765567330727,3.76947433,3074.6,3074.3,0.09444716]
[1765567331224,7.02194866,3074.6,3074.1,0.09444716]
[1765567331401,0.4581,3074.4,3074.1,0.09444716]
[1765567332446,3.71080207,3074.4,3074.1,0.09444716]
[1765567332938,0.517,3076.5,3074.7,0.98597929]
[1765567333139,0.4748,3077.1,3075.8,0.58047529]
[1765567333351,0.517,3076.8,3076.0,7.760297]
[1765567333644,0.517,3076.8,3075.9,0.405504]
[1765567333943,0.517,3077.0,3076.5,11.592638]
[1765567334149,0.517,3077.0,3076.4,0.405504]
[1765567334309,0.001,3077.3,3076.8,0.58047529]
[1765567334510,0.517,3077.2,3077.1,3.24981313]
[1765567335406,0.001,3077.3,3077.1,3.24981313]
[1765567335606,0.001,3077.3,3077.2,0.58047529]
[1765567336542,0.001,3077.3,3077.2,3.83018281]
[1765567339662,0.9701,3077.3,3077.1,3.24978166]
[1765567339941,0.4916,3077.3,3077.2,0.09444716]
[1765567340652,0.9751,3077.3,3077.2,0.09444716]
[1765567343664,0.518,3077.3,3077.2,3.34415468]
[1765567344070,0.518,3077.3,3077.2,0.09444716]
[1765567344681,0.518,3077.3,3077.2,3.34415468]
[1765567345482,0.001,3077.3,3077.2,11.37389638]
[1765567345774,0.001,3077.3,3077.2,3.92462997]
[1765567347688,0.001,3077.3,3077.2,0.09444716]
[1765567348760,0.518,3077.3,3077.2,0.09444716]
[1765567348962,0.9797,3077.3,3077.2,0.09444716]
[1765567349177,1.4632,3077.3,3077.2,0.09444716]
[1765567349380,0.9797,3077.3,3077.2,0.09444716]
[1765567350349,1.4632,3077.3,3077.2,0.09444716]
[1765567350549,3.24970752,3077.2,3077.0,0.09444716]
[1765567350859,0.4617,3077.1,3077.0,0.09444716]
[1765567351068,0.9452,3077.1,3077.0,0.09444716]
[1765567351379,1.41648422,3077.1,3076.6,0.09444716]
[1765567351588,0.6508,3076.7,3076.6,0.09444716]
[1765567351793,1.1678,3076.7,3076.6,0.09444716]
[1765567351987,1.6513,3076.7,3076.6,0.09444716]
[1765567354292,0.4835,3077.0,3076.6,3.34477051]
[1765567354590,0.517,3076.9,3076.8,0.09444716]
[1765567355671,0.517,3076.9,3076.8,3.34457716]
[1765567355871,0.001,3077.3,3076.8,3.34457716]
[1765567356074,0.001,3077.3,3077.2,0.09444716]
[1765567356266,0.518,3077.3,3077.2,0.09444716]
[1765567357194,0.9462,3077.3,3077.2,0.09444716]
[1765567357502,4.22930192,3077.3,3077.0,0.09444716]
[1765567357664,0.4617,3077.1,3077.0,0.09444716]
[1765567358200,0.9452,3077.1,3077.0,0.09444716]
[1765567358501,0.9452,3077.1,3076.6,0.09444716]
[1765567358662,0.6508,3076.7,3076.6,0.09444716]
[1765567358868,4.41803564,3076.7,3076.6,0.09444716]
[1765567359105,4.90153564,3076.7,3076.6,0.09444716]
[1765567359417,4.90153564,3076.7,3076.4,0.09444716]
[1765567359418,1.6513,3076.7,3076.4,0.09444716]
[1765567359709,1.6513,3076.7,3076.6,0.09444716]
[1765567359915,1.1678,3076.7,3076.6,0.09444716]
[1765567360082,4.41803564,3076.7,3076.4,0.09444716]
[1765567360404,0.4617,3076.5,3076.4,0.09444716]
[1765567360768,0.9452,3076.5,3076.4,0.09444716]
[1765567361472,0.9452,3076.5,3076.0,3.34539545]
[1765567361672,0.9452,3076.5,3076.4,0.09444716]
[1765567362086,0.7061,3076.7,3076.4,0.09444716]
[1765567362283,1.1896,3076.7,3076.4,0.09444716]
[1765567362776,0.1891,3076.7,3076.6,0.09444716]
[1765567362988,0.517,3076.7,3076.6,0.09444716]
[1765567364597,1.4622,3076.7,3076.6,0.09444716]
[1765567367280,0.517,3076.7,3076.6,0.09444716]
[1765567367476,3.73345303,3077.0,3076.6,0.09444716]
[1765567367694,0.517,3076.9,3076.8,0.09444716]
[1765567368900,4.90132437,3076.9,3076.6,0.09444716]
[1765567369070,0.4617,3076.7,3076.6,0.09444716]
[1765567370685,3.25018547,3076.8,3076.6,0.09444716]
[1765567371681,3.25018547,3076.8,3076.5,1.49]
[1765567371682,0.9889,3076.7,3076.5,1.49]
[1765567371888,0.4972,3076.6,3076.5,1.49]
[1765567372891,3.74754128,3076.6,3076.5,1.49]
[1765567373093,0.9889,3076.6,3076.5,1.49]
[1765567373694,4.23924128,3076.6,3076.2,1.58444716]
[1765567374012,0.4972,3076.3,3076.2,1.58444716]
[1765567374178,1.0087,3076.5,3076.2,1.58444716]
[1765567375006,1.0087,3076.5,3076.4,0.09444716]
[1765567375321,1.0087,3076.5,3076.2,1.58444716]
[1765567375322,1.5059,3076.5,3076.2,1.58444716]
[1765567375611,1.5059,3076.5,3076.2,1.49]
[1765567375612,0.4972,3076.3,3076.2,1.49]
[1765567375993,0.9889,3076.3,3076.2,1.49]
[1765567377107,4.23955825,3076.3,3076.2,1.49]
[1765567378611,0.4972,3076.3,3076.2,1.49]
[1765567379019,3.74785825,3076.3,3076.2,1.49]
[1765567379816,0.4972,3076.3,3076.2,1.49]
[1765567380387,3.74785825,3076.3,3076.0,0.09444716]
[1765567380614,0.517,3076.2,3076.1,0.09444716]
[1765567381398,0.4917,3076.6,3076.1,0.09444716]
[1765567381641,0.1891,3076.9,3076.1,0.09444716]
[1765567381642,3.25013374,3076.8,3076.5,0.09444716]
[1765567381849,0.517,3076.7,3076.5,0.09444716]
[1765567383141,1.0142,3076.6,3076.5,0.09444716]
[1765567384043,4.26454128,3076.6,3076.3,0.09444716]
[1765567384244,4.26454128,3076.6,3076.5,0.09444716]
[1765567384607,8.75806136,3076.6,3076.3,0.09444716]
[1765567384813,0.4972,3076.4,3076.1,0.09444716]
[1765567385043,0.4917,3076.5,3075.8,0.09444716]
[1765567385044,0.4972,3076.2,3075.8,0.09444716]
[1765567385251,0.517,3076.1,3076.0,0.09444716]
[1765567385655,0.517,3076.1,3075.8,0.09444716]
[1765567385815,0.517,3076.1,3076.0,0.09444716]
[1765567386012,0.517,3076.1,3075.8,0.09444716]
[1765567386248,0.6773,3075.9,3075.8,0.09444716]
[1765567386426,0.4972,3075.9,3075.8,0.09444716]
[1765567386836,1.169,3075.9,3075.8,0.09444716]
[1765567387139,1.98777392,3075.9,3075.4,0.09444716]
[1765567387346,1.98777392,3075.9,3075.2,0.09444716]
[1765567387347,0.4972,3075.5,3075.2,0.09444716]
[1765567387521,0.517,3075.4,3075.2,0.09444716]
[1765567388846,0.517,3075.4,3075.0,0.09444716]
[1765567389072,0.4972,3075.1,3074.8,0.09444716]
[1765567389226,7.51203056,3075.4,3073.8,2.189491]
[1765567389227,0.6773,3074.9,3073.8,2.189491]
[1765567389425,0.517,3074.8,3074.4,3.25260214]
[1765567389629,0.517,3074.8,3074.5,3.25247232]
[1765567389961,0.517,3074.8,3073.8,16.237532]
[1765567390159,0.517,3074.8,3074.1,0.58047529]
[1765567390359,0.517,3074.8,3073.8,0.58047529]
[1765567390543,0.517,3074.8,3074.7,0.09444716]
[1765567390932,0.517,3074.8,3074.5,0.09444716]
[1765567391263,0.517,3074.8,3074.7,0.09444716]
[1765567391468,1.0087,3074.8,3074.6,0.09444716]
[1765567391761,1.0087,3074.8,3074.3,0.09444716]
[1765567391762,4.26098954,3074.8,3074.3,0.09444716]
[1765567391925,1.0087,3074.8,3074.6,0.09444716]
[1765567392251,1.0087,3074.8,3074.3,0.09444716]
[1765567392252,3.76924799,3074.8,3074.3,0.09444716]
[1765567392424,4.26094799,3074.8,3074.5,0.09444716]
[1765567392818,1.0087,3074.8,3074.5,0.09444716]
[1765567393043,0.517,3074.7,3074.5,0.09444716]
[1765567393950,0.4917,3075.2,3074.5,0.09444716]
[1765567393951,6.50385352,3075.1,3074.5,0.09444716]
[1765567394157,0.517,3075.0,3074.5,0.09444716]
[1765567394360,1.0087,3075.0,3074.3,0.09444716]
[1765567394543,1.0087,3075.0,3074.6,0.09444716]
[1765567395133,0.517,3074.9,3074.8,0.09444716]
[1765567395958,3.76913828,3074.9,3074.6,0.09444716]
[1765567396158,4.26633828,3074.9,3074.6,0.09444716]
[1765567397067,4.26633828,3074.9,3074.3,0.09444716]
[1765567397068,0.4972,3074.7,3074.3,0.09444716]
[1765567397370,0.4972,3074.7,3074.5,0.09444716]
[1765567397737,0.4972,3074.6,3074.3,0.09444716]
[1765567398033,0.4972,3074.4,3074.1,0.09444716]
[1765567398237,3.76964374,3074.5,3074.3,0.09444716]
[1765567398439,0.517,3074.5,3074.3,0.09444716]
[1765567400041,3.76957389,3074.5,3074.3,0.09444716]
[1765567402249,0.517,3074.5,3074.3,0.09444716]
[1765567403973,0.517,3074.5,3074.1,0.09444716]
[1765567403974,0.4936,3074.4,3074.1,0.09444716]
[1765567404182,0.4936,3074.4,3074.3,0.09444716]
[1765567404473,0.517,3074.5,3074.3,0.09444716]
[1765567405562,0.99887392,3075.9,3074.3,0.09444716]
[1765567405870,0.517,3075.2,3075.1,0.09444716]
[1765567406766,1.0106,3075.2,3075.1,0.09444716]
[1765567407379,1.4786,3075.2,3075.0,0.09444716]
[1765567407548,0.468,3075.1,3075.0,0.09444716]
[1765567407752,0.9616,3075.1,3075.0,0.09444716]
[1765567408042,0.4936,3075.1,3075.0,0.09444716]
[1765567408445,1.0106,3075.1,3075.0,0.09444716]
[1765567408862,0.517,3075.1,3075.0,0.09444716]
[1765567409970,0.469,3075.8,3075.0,3.34647968]
[1765567410279,3.76836981,3075.7,3075.5,0.09444716]
[1765567410977,4.23636981,3075.7,3075.5,0.09444716]
[1765567411179,0.4936,3075.6,3075.5,0.09444716]
[1765567411576,1.0106,3075.6,3075.5,0.09444716]
[1765567411782,0.517,3075.6,3075.5,0.09444716]
[1765567412382,0.001,3075.8,3075.5,0.09444716]
[1765567412551,0.001,3075.8,3075.7,0.09444716]
[1765567412892,0.518,3075.8,3075.7,0.09444716]
[1765567413467,1.0116,3075.8,3075.3,0.09444716]
[1765567413661,0.4936,3075.4,3075.3,0.09444716]
[1765567413860,0.517,3075.4,3075.3,0.09444716]
[1765567414881,1.0106,3075.4,3075.3,0.09444716]
[1765567415051,1.0106,3075.4,3075.0,0.09444716]
[1765567415255,1.0106,3075.4,3075.3,0.09444716]
[1765567417477,0.517,3075.4,3075.3,0.09444716]
[1765567418491,0.001,3075.8,3075.5,0.58047529]
[1765567418658,0.001,3075.8,3075.7,8.13606614]
[1765567418854,0.001,3075.8,3075.7,11.38735852]
[1765567419169,0.001,3075.8,3075.7,12.37333781]
[1765567419367,0.001,3075.8,3075.7,15.35740181]
[1765567419670,0.6571,3077.9,3076.0,0.98597929]
[1765567419871,0.1891,3077.9,3077.1,8.04161898]
[1765567420192,0.517,3077.4,3077.1,8.04161898]
[1765567420489,0.468,3078.1,3077.2,0.09444716]
[1765567420660,0.518,3077.6,3077.2,0.09444716]
[1765567420859,0.518,3077.6,3077.2,3.34415468]
[1765567421990,0.518,3077.6,3077.3,0.405504]
[1765567421991,0.001,3077.6,3077.3,0.405504]
[1765567422189,0.001,3077.6,3077.5,3.74576316]
[1765567422493,0.001,3077.6,3077.5,3.18815845]
[1765567422789,0.001,3077.6,3077.5,0.67492245]
[1765567423293,0.001,3077.6,3076.8,0.09444716]
[1765567423494,1.4796,3077.6,3077.2,0.09444716]
[1765567423793,1.4796,3077.6,3077.0,0.09444716]
[1765567424087,0.4936,3077.1,3077.0,0.09444716]
[1765567424291,1.0106,3077.1,3077.0,0.09444716]
[1765567424482,0.517,3077.1,3077.0,0.09444716]
[1765567426792,4.72841313,3077.1,3077.0,0.09444716]
[1765567426983,4.72841313,3077.1,3076.4,0.09444716]
[1765567426984,5.52621917,3077.1,3076.4,0.09444716]
[1765567427183,0.4936,3076.9,3076.6,0.09444716]
[1765567427493,0.6784,3076.5,3076.4,0.09444716]
[1765567427672,1.1954,3076.5,3076.4,0.09444716]
[1765567427993,1.6634,3076.5,3076.4,0.09444716]
[1765567428761,1.82974,3076.5,3076.0,0.09444716]
[1765567428966,0.4936,3076.1,3075.7,0.09444716]
[1765567429285,0.4936,3076.1,3075.9,0.09444716]
[1765567429286,0.517,3076.0,3075.9,0.09444716]
[1765567430596,0.6528,3076.5,3075.9,0.09444716]
[1765567430771,0.1848,3076.5,3076.4,0.09444716]
[1765567431099,0.517,3076.5,3076.4,0.09444716]
[1765567431396,1.4927,3076.5,3076.1,0.09444716]
[1765567431595,1.4927,3076.5,3075.9,0.09444716]
[1765567431596,0.4829,3076.2,3075.9,0.09444716]
[1765567431892,0.4928,3076.4,3076.1,0.09444716]
[1765567432598,0.4829,3076.2,3075.9,0.09444716]
[1765567432768,0.4829,3076.0,3075.9,0.09444716]
[1765567432963,0.9999,3076.0,3075.9,0.09444716]
[1765567433198,0.517,3076.0,3075.9,0.09444716]
[1765567434104,0.1948,3077.0,3075.9,0.09444716]
[1765567434289,0.517,3076.9,3076.7,0.09444716]
[1765567434704,1.0098,3076.9,3076.7,0.09444716]
[1765567435197,4.25983593,3076.9,3076.7,0.09444716]
[1765567436801,4.25983593,3076.9,3076.3,0.09444716]
[1765567436802,0.9757,3076.8,3076.3,0.09444716]
[1765567437001,0.4829,3076.4,3076.3,0.09444716]
[1765567437295,0.9999,3076.4,3076.3,0.09444716]
[1765567437473,0.517,3076.4,3076.3,0.09444716]
[1765567437666,0.9999,3076.4,3076.3,0.09444716]
[1765567437869,1.4927,3076.4,3076.3,0.09444716]
[1765567438099,0.9999,3076.4,3076.3,0.09444716]
[1765567438292,0.517,3076.4,3076.3,0.09444716]
[1765567438476,1.4927,3076.4,3076.3,0.09444716]
[1765567439175,4.74325259,3076.4,3076.3,0.09444716]
[1765567439382,1.4927,3076.4,3076.3,0.09444716]
[1765567439984,0.9999,3076.4,3076.3,0.09444716]
[1765567440188,3.25003485,3076.9,3076.3,3.34510541]
[1765567440387,0.517,3076.8,3076.7,0.09444716]
[1765567440904,0.9999,3076.8,3076.7,0.09444716]
[1765567441073,0.9999,3076.8,3075.7,0.58047529]
[1765567441274,0.4829,3075.8,3075.7,0.09444716]
[1765567441476,0.517,3075.8,3075.7,0.09444716]
[1765567443577,7.99507336,3075.8,3075.1,0.09444716]
[1765567443783,0.4829,3075.5,3075.3,0.09444716]
[1765567444914,3.44590808,3075.9,3075.3,0.09444716]
[1765567444915,3.44592312,3075.9,3075.3,0.09444716]
[1765567445125,0.1948,3076.2,3075.8,0.09444716]
[1765567445277,7.0187392,3076.1,3075.8,0.09444716]
[1765567445613,0.4829,3075.9,3075.6,0.09444716]
[1765567445779,0.4829,3075.7,3075.3,0.09444716]
[1765567445976,3.25079459,3076.2,3075.5,0.09444716]
[1765567446191,0.517,3076.1,3075.5,0.09444716]
[1765567446426,1.34994248,3076.8,3075.5,0.09444716]
[1765567446427,0.58047529,3076.8,3076.0,8.04161898]
[1765567446586,0.001,3077.6,3075.7,27.240972]
[1765567446587,0.4928,3077.3,3075.7,27.240972]
[1765567446787,0.1948,3076.9,3075.8,0.58047529]
[1765567447012,0.1948,3076.9,3075.9,0.405504]
[1765567447212,0.1948,3076.9,3076.1,3.2508696]
[1765567447514,3.93762437,3076.9,3076.0,3.25095739]
[1765567447699,7.18765983,3076.9,3076.0,3.25095739]
[1765567448194,3.93762437,3076.9,3076.0,3.25095739]
[1765567448390,0.4928,3076.8,3075.9,3.83148785]
[1765567448595,0.4928,3076.8,3075.9,0.58047529]
[1765567448795,0.517,3076.7,3076.0,3.25095164]
[1765567449520,3.25034128,3076.6,3075.9,3.83155411]
[1765567449737,4.00136948,3076.6,3076.2,0.09444716]
[1765567449915,0.4928,3076.5,3076.2,0.09444716]
[1765567450118,3.76725318,3076.7,3076.2,0.09444716]
[1765567450415,4.26005197,3076.7,3076.4,0.09444716]
[1765567451030,0.4928,3076.7,3076.4,0.09444716]
[1765567451200,0.517,3076.6,3076.4,0.09444716]
[1765567453250,1.0098,3077.7,3076.6,0.58047529]
[1765567453549,0.517,3077.7,3077.1,0.58047529]
[1765567454037,0.001,3078.0,3077.3,9.427406]
[1765567454244,0.517,3077.9,3077.5,0.09444716]
[1765567454395,0.001,3078.0,3077.5,0.09444716]
[1765567454904,0.518,3078.0,3077.5,0.09444716]
[1765567455339,0.4839,3077.6,3077.5,0.09444716]
[1765567455649,0.9767,3077.6,3077.3,0.09444716]
[1765567455802,1.0098,3077.5,3077.3,0.09444716]
[1765567456297,0.9757,3077.4,3077.3,0.09444716]
[1765567456924,0.001,3077.6,3077.3,0.09444716]
[1765567458856,0.517,3077.6,3077.3,0.09444716]
[1765567459211,0.517,3077.6,3077.3,3.34403278]
[1765567459635,0.001,3077.6,3077.5,0.09444716]
[1765567460416,0.001,3077.6,3077.5,3.74934189]
[1765567460618,0.001,3077.6,3077.5,4.32981718]
[1765567461334,0.001,3077.6,3077.5,17.60033418]
[1765567462122,0.001,3078.2,3077.6,0.98597929]
[1765567462425,0.001,3078.3,3078.2,33.62926409]
[1765567462626,0.001,3078.3,3078.2,30.05800309]
[1765567462826,0.001,3078.3,3078.2,20.13000809]
[1765567463041,0.001,3078.3,3078.2,16.64179909]
[1765567463542,0.001,3078.3,3078.2,17.96386909]
[1765567464135,0.001,3078.3,3078.2,8.33878409]
[1765567464449,0.001,3078.3,3078.2,11.83832909]
[1765567465038,0.001,3078.3,3078.2,10.08844909]
[1765567465241,0.001,3078.3,3078.2,7.97912809]
[1765567465622,0.1928,3078.9,3078.2,7.97912809]
[1765567465623,0.4921,3079.7,3078.2,40.73193469]
[1765567465810,0.1918,3080.6,3079.7,0.405504]
[1765567466011,0.1918,3080.9,3080.5,8.03607426]
[1765567466445,0.4941,3080.6,3079.9,0.405504]
[1765567466947,0.4941,3080.6,3080.5,0.09444716]
[1765567466948,0.9862,3080.6,3080.5,0.09444716]
[1765567467740,3.43760479,3080.9,3080.5,0.09444716]
[1765567467974,0.4921,3080.8,3080.5,0.09444716]
[1765567468147,0.4941,3080.6,3080.5,0.09444716]
[1765567468518,4.23232088,3080.6,3080.5,0.09444716]
[1765567468843,4.23232088,3080.6,3080.3,0.09444716]
[1765567468844,7.47844176,3080.6,3080.3,0.09444716]
[1765567469050,0.4941,3080.4,3080.3,0.09444716]
[1765567469216,0.4941,3080.4,3080.1,0.09444716]
[1765567469421,0.517,3080.7,3080.5,0.09444716]
[1765567469643,3.24581776,3080.9,3080.5,0.09444716]
[1765567469829,0.4921,3081.7,3080.9,2.295759]
[1765567470015,3.76175161,3081.9,3080.9,0.58047529]
[1765567470016,0.4921,3081.6,3080.9,0.58047529]
[1765567470344,0.4921,3081.6,3080.6,0.58047529]
[1765567470514,3.2451728,3081.5,3080.6,0.58047529]
[1765567470942,0.517,3081.4,3080.6,0.58047529]
[1765567471113,1.0091,3081.4,3080.5,8.13052142]
[1765567471317,1.0091,3081.4,3080.5,0.09444716]
[1765567471517,0.4921,3081.3,3080.5,0.09444716]
[1765567471714,0.517,3081.2,3080.5,0.09444716]
[1765567471920,0.517,3081.2,3080.5,8.13052142]
[1765567472147,3.7371806,3081.6,3080.7,0.58047529]
[1765567472349,0.517,3081.5,3080.8,0.58047529]
[1765567472553,3.76220015,3081.5,3080.7,4.2319235]
[1765567472728,3.76220015,3081.5,3080.8,5.195]
[1765567472934,0.6859,3080.9,3080.5,0.09444716]
[1765567473245,0.4941,3080.6,3080.5,0.09444716]
[1765567474319,0.4921,3080.8,3080.5,0.09444716]
[1765567474563,0.4921,3081.9,3080.7,0.18884716]
[1765567474734,0.4921,3081.6,3080.9,0.58047529]
[1765567474937,0.517,3081.5,3080.9,0.58047529]
[1765567475135,0.6839,3082.0,3081.0,0.405504]
[1765567475502,0.4921,3082.4,3081.3,0.405504]
[1765567475622,0.517,3082.3,3081.9,0.0944]
[1765567476023,0.4921,3082.2,3081.3,0.405504]
[1765567476258,0.4921,3082.7,3081.5,0.405504]
[1765567476460,0.517,3082.4,3082.2,0.09444716]
[1765567476760,3.24433053,3082.3,3082.2,0.09444716]
[1765567477054,4.23053053,3082.3,3082.2,0.09444716]
[1765567477259,0.4941,3082.3,3082.2,0.09444716]
[1765567477931,0.9862,3082.3,3082.2,0.09444716]
[1765567478143,1.78536766,3082.3,3082.0,0.09444716]
[1765567478459,0.4941,3082.1,3082.0,0.09444716]
[1765567478824,4.23074105,3082.1,3082.0,0.09444716]
[1765567479351,3.24454105,3082.1,3082.0,0.09444716]
[1765567479567,0.1918,3083.0,3082.0,3.33909349]
[1765567479744,7.49659789,3082.9,3082.0,0.09444716]
[1765567479929,7.49659789,3082.9,3081.7,3.664872]
[1765567480124,0.4921,3082.8,3081.7,3.664872]
[1765567480434,0.4921,3082.8,3081.8,0.98597929]
[1765567480639,0.1918,3083.0,3082.0,6.89479502]